[Event "*** Titled Tuesday Blitz"]
[Site "Chess.com"]
[Date "2020.05.26"]
[Round "9"]
[White "Piotrek1979"]
[Black "mattcolins2025"]
[Result "0-1"]
[WhiteElo "2398"]
[BlackElo "2317"]
[TimeControl "180+1"]
[EndTime "11:51:18 PDT"]
[Termination "mattcolins2025 won on time"]

1. Nf3 {[%clk 0:03:00.9]} 1... Nf6 {[%clk 0:03:00.1]} 2. b3 {[%clk 0:02:59.8]}
2... g6 {[%clk 0:03:00.4]} 3. Bb2 {[%clk 0:03:00.6]} 3... Bg7 {[%clk 0:03:00.9]}
4. e3 {[%clk 0:03:01]} 4... O-O {[%clk 0:03:01.3]} 5. c4 {[%clk 0:03:01]} 5...
d5 {[%clk 0:03:01.8]} 6. Be2 {[%clk 0:03:00.2]} 6... c6 {[%clk 0:03:02.2]} 7.
O-O {[%clk 0:02:59.7]} 7... Nbd7 {[%clk 0:03:01.2]} 8. cxd5 {[%clk 0:02:58.7]}
8... cxd5 {[%clk 0:03:01.4]} 9. Qc2 {[%clk 0:02:56.6]} 9... Nb8 {[%clk
0:03:00.1]} 10. Ne5 {[%clk 0:02:26.8]} 10... Bf5 {[%clk 0:02:49.1]} 11. d3
{[%clk 0:02:25.9]} 11... Nbd7 {[%clk 0:02:47.1]} 12. Qd2 {[%clk 0:01:34.1]}
12... Nxe5 {[%clk 0:02:42.7]} 13. Bxe5 {[%clk 0:01:33.3]} 13... Rc8 {[%clk
0:02:31.6]} 14. Qb2 {[%clk 0:01:00.3]} 14... Qd7 {[%clk 0:02:28.3]} 15. Nd2
{[%clk 0:00:58.2]} 15... Rc6 {[%clk 0:02:08.2]} 16. Rfc1 {[%clk 0:00:45.5]}
16... Rfc8 {[%clk 0:02:06.5]} 17. Nf3 {[%clk 0:00:42.8]} 17... Bg4 {[%clk
0:01:51.7]} 18. Rxc6 {[%clk 0:00:29.3]} 18... Qxc6 {[%clk 0:01:51.5]} 19. Nd4
{[%clk 0:00:28.3]} 19... Qd7 {[%clk 0:01:47.3]} 20. Bxf6 {[%clk 0:00:27.1]}
20... Bxf6 {[%clk 0:01:46.9]} 21. Bxg4 {[%clk 0:00:21.8]} 21... Qxg4 {[%clk
0:01:46.6]} 22. h3 {[%clk 0:00:13.3]} 22... Qd7 {[%clk 0:01:43.2]} 23. Rc1
{[%clk 0:00:11.5]} 23... Rxc1+ {[%clk 0:01:41.6]} 24. Qxc1 {[%clk 0:00:11.5]}
24... e5 {[%clk 0:01:33.7]} 25. Nf3 {[%clk 0:00:09.5]} 25... e4 {[%clk
0:01:33.6]} 26. dxe4 {[%clk 0:00:07.1]} 26... dxe4 {[%clk 0:01:33.6]} 27. Nd2
{[%clk 0:00:08]} 27... Qd3 {[%clk 0:01:33.4]} 28. Nc4 {[%clk 0:00:07.7]} 28...
Bc3 {[%clk 0:01:33]} 29. Qf1 {[%clk 0:00:06.7]} 29... b5 {[%clk 0:01:32.2]} 30.
Na3 {[%clk 0:00:01.7]} 30... Bb4 {[%clk 0:01:25.7]} 31. Nb1 {[%clk 0:00:02]}
31... Qc2 {[%clk 0:01:21.9]} 32. a4 {[%clk 0:00:02.6]} 32... bxa4 {[%clk
0:01:19.2]} 33. bxa4 {[%clk 0:00:03.5]} 33... Qxa4 {[%clk 0:01:19.6]} 34. Kh2
{[%clk 0:00:01.8]} 34... Bd6+ {[%clk 0:01:18.9]} 35. g3 {[%clk 0:00:02.2]} 35...
Qc2 {[%clk 0:01:17.7]} 36. Qe1 {[%clk 0:00:01.2]} 36... a5 {[%clk 0:01:16.8]}
37. Kg2 {[%clk 0:00:01.6]} 37... a4 {[%clk 0:01:16.7]} 38. Qd2 {[%clk
0:00:01.9]} 38... Qxd2 {[%clk 0:01:11.4]} 39. Nxd2 {[%clk 0:00:02.8]} 39... a3
{[%clk 0:01:11.8]} 40. Nb3 {[%clk 0:00:01]} 40... a2 {[%clk 0:01:12]} 41. f4
{[%clk 0:00:01.1]} 41... exf3+ {[%clk 0:01:12.4]} 42. Kxf3 {[%clk 0:00:01.2]}
42... Be5 {[%clk 0:01:12.8]} 0-1

[Event "*** Titled Tuesday Blitz"]
[Site "Chess.com"]
[Date "2020.05.26"]
[Round "9"]
[White "elamier"]
[Black "AlexZambrano"]
[Result "1-0"]
[WhiteElo "2112"]
[BlackElo "2240"]
[TimeControl "180+1"]
[EndTime "11:51:18 PDT"]
[Termination "elamier won by resignation"]

1. d4 {[%clk 0:03:00.9]} 1... Nf6 {[%clk 0:02:44.6]} 2. Bg5 {[%clk 0:02:59.5]}
2... d5 {[%clk 0:02:43.9]} 3. Bxf6 {[%clk 0:02:58.4]} 3... exf6 {[%clk
0:02:43.8]} 4. e3 {[%clk 0:02:59.1]} 4... Bd6 {[%clk 0:02:42.4]} 5. c4 {[%clk
0:02:59.1]} 5... O-O {[%clk 0:02:38.9]} 6. cxd5 {[%clk 0:02:54.7]} 6... Bb4+
{[%clk 0:02:38.7]} 7. Nc3 {[%clk 0:02:52.7]} 7... Qxd5 {[%clk 0:02:38.4]} 8. Ne2
{[%clk 0:02:50.6]} 8... c5 {[%clk 0:02:36.5]} 9. a3 {[%clk 0:02:05.5]} 9...
Bxc3+ {[%clk 0:02:35.4]} 10. Nxc3 {[%clk 0:02:04.8]} 10... Qc6 {[%clk
0:02:33.2]} 11. d5 {[%clk 0:02:02]} 11... Qb6 {[%clk 0:02:23.7]} 12. Qd2 {[%clk
0:02:00.6]} 12... Rd8 {[%clk 0:02:17.5]} 13. Be2 {[%clk 0:02:00.1]} 13... Be6
{[%clk 0:02:10.4]} 14. Bf3 {[%clk 0:01:58.4]} 14... Bf5 {[%clk 0:01:59.9]} 15.
O-O {[%clk 0:01:42.7]} 15... Nd7 {[%clk 0:01:59.8]} 16. Rac1 {[%clk 0:01:41.1]}
16... Rac8 {[%clk 0:01:56.3]} 17. e4 {[%clk 0:01:29.2]} 17... Bg6 {[%clk
0:01:55.5]} 18. Bg4 {[%clk 0:01:26.6]} 18... a6 {[%clk 0:01:48.7]} 19. Bxd7
{[%clk 0:01:22.7]} 19... Rxd7 {[%clk 0:01:47.1]} 20. f4 {[%clk 0:01:22.2]} 20...
f5 {[%clk 0:01:12.7]} 21. e5 {[%clk 0:01:19.7]} 21... f6 {[%clk 0:01:08.5]} 22.
d6 {[%clk 0:01:13.3]} 22... Bf7 {[%clk 0:00:52.4]} 23. Nd5 {[%clk 0:01:08.6]}
23... Bxd5 {[%clk 0:00:52.2]} 24. Qxd5+ {[%clk 0:01:07]} 24... Kh8 {[%clk
0:00:52.8]} 25. Rfd1 {[%clk 0:01:02.4]} 25... Rcd8 {[%clk 0:00:43.7]} 26. Qxc5
{[%clk 0:00:57.1]} 26... Qxb2 {[%clk 0:00:23.3]} 27. e6 {[%clk 0:00:51.8]} 27...
Rxd6 {[%clk 0:00:13.7]} 28. Rxd6 {[%clk 0:00:49.9]} 28... Rxd6 {[%clk
0:00:13.6]} 29. Qc8+ {[%clk 0:00:47.9]} 1-0

[Event "*** Titled Tuesday Blitz"]
[Site "Chess.com"]
[Date "2020.05.26"]
[Round "9"]
[White "DonBroca"]
[Black "grandcoach"]
[Result "1-0"]
[WhiteElo "2197"]
[BlackElo "2079"]
[TimeControl "180+1"]
[EndTime "11:51:18 PDT"]
[Termination "DonBroca won on time"]

1. e4 {[%clk 0:02:54.8]} 1... c5 {[%clk 0:02:59.7]} 2. d4 {[%clk 0:02:30.3]}
2... cxd4 {[%clk 0:02:58.8]} 3. c3 {[%clk 0:02:11.2]} 3... Nf6 {[%clk
0:02:58.8]} 4. e5 {[%clk 0:02:10.9]} 4... Nd5 {[%clk 0:02:59.3]} 5. Nf3 {[%clk
0:02:10.8]} 5... Nc6 {[%clk 0:02:58.7]} 6. Bc4 {[%clk 0:02:09.8]} 6... Nb6
{[%clk 0:02:48]} 7. Bb3 {[%clk 0:02:10.3]} 7... dxc3 {[%clk 0:02:45.1]} 8. Nxc3
{[%clk 0:02:11.2]} 8... e6 {[%clk 0:02:45.2]} 9. O-O {[%clk 0:02:10.4]} 9... Be7
{[%clk 0:02:43.4]} 10. Qe2 {[%clk 0:02:05.5]} 10... O-O {[%clk 0:02:34.8]} 11.
Rd1 {[%clk 0:02:05]} 11... f6 {[%clk 0:02:18.4]} 12. Bf4 {[%clk 0:01:48.2]}
12... fxe5 {[%clk 0:02:07.5]} 13. Bxe5 {[%clk 0:01:48.7]} 13... Rxf3 {[%clk
0:01:44.3]} 14. gxf3 {[%clk 0:01:42.8]} 14... Nxe5 {[%clk 0:01:38.2]} 15. Qxe5
{[%clk 0:01:43.7]} 15... Bf6 {[%clk 0:01:23.6]} 16. Bxe6+ {[%clk 0:01:28.1]}
16... Kh8 {[%clk 0:01:20.9]} 17. Qe4 {[%clk 0:01:21.5]} 17... Qf8 {[%clk
0:00:51.4]} 18. Bd5 {[%clk 0:01:16.3]} 18... d6 {[%clk 0:00:49]} 19. Bxb7 {[%clk
0:01:13]} 19... Bxb7 {[%clk 0:00:46.8]} 20. Qxb7 {[%clk 0:01:12.7]} 20... Qe8
{[%clk 0:00:33.6]} 21. Qe4 {[%clk 0:01:03]} 21... Qh5 {[%clk 0:00:26.6]} 22. Nd5
{[%clk 0:00:54.7]} 22... Rf8 {[%clk 0:00:21.6]} 23. Nxb6 {[%clk 0:00:46.9]}
23... axb6 {[%clk 0:00:19.8]} 24. Rxd6 {[%clk 0:00:45.4]} 24... Bxb2 {[%clk
0:00:18.9]} 25. Rad1 {[%clk 0:00:45.2]} 25... Be5 {[%clk 0:00:16.6]} 26. Rd8
{[%clk 0:00:44.3]} 26... Qxh2+ {[%clk 0:00:16.6]} 27. Kf1 {[%clk 0:00:43.6]}
27... Kg8 {[%clk 0:00:13.4]} 28. Qc4+ {[%clk 0:00:38.4]} 1-0

[Event "*** Titled Tuesday Blitz"]
[Site "Chess.com"]
[Date "2020.05.26"]
[Round "9"]
[White "allvim"]
[Black "InitiatingASC"]
[Result "1/2-1/2"]
[WhiteElo "2273"]
[BlackElo "2387"]
[TimeControl "180+1"]
[EndTime "11:51:19 PDT"]
[Termination "Game drawn by agreement"]

1. e4 {[%clk 0:03:00.9]} 1... c5 {[%clk 0:02:59.7]} 2. Nf3 {[%clk 0:02:58.9]}
2... Nc6 {[%clk 0:02:59.9]} 3. d4 {[%clk 0:02:58.6]} 3... cxd4 {[%clk
0:03:00.8]} 4. Nxd4 {[%clk 0:02:59.2]} 4... Nf6 {[%clk 0:03:01.1]} 5. Nc3 {[%clk
0:02:59.4]} 5... e5 {[%clk 0:03:00]} 6. Ndb5 {[%clk 0:02:59.4]} 6... h6 {[%clk
0:02:58.4]} 7. Nd6+ {[%clk 0:02:33.1]} 7... Bxd6 {[%clk 0:02:58.2]} 8. Qxd6
{[%clk 0:02:34]} 8... Qe7 {[%clk 0:02:58.2]} 9. Qxe7+ {[%clk 0:02:34.5]} 9...
Kxe7 {[%clk 0:02:59.1]} 10. b3 {[%clk 0:02:29.5]} 10... d6 {[%clk 0:02:57.8]}
11. Ba3 {[%clk 0:02:27.1]} 11... Rd8 {[%clk 0:02:57.9]} 12. O-O-O {[%clk
0:02:27.2]} 12... Be6 {[%clk 0:02:54.9]} 13. f3 {[%clk 0:02:26.5]} 13... Nd4
{[%clk 0:02:53.1]} 14. Ne2 {[%clk 0:02:22.3]} 14... Nxe2+ {[%clk 0:02:44.7]} 15.
Bxe2 {[%clk 0:02:23.2]} 15... Rac8 {[%clk 0:02:44.7]} 16. Rd2 {[%clk 0:02:18.8]}
16... a6 {[%clk 0:02:27.6]} 17. Rhd1 {[%clk 0:02:16.7]} 17... Rc6 {[%clk
0:02:27.5]} 18. Bb2 {[%clk 0:02:09]} 18... d5 {[%clk 0:02:11.1]} 19. Bxe5 {[%clk
0:02:05.6]} 19... Rdc8 {[%clk 0:02:06.6]} 20. Bxf6+ {[%clk 0:02:01.3]} 20...
Kxf6 {[%clk 0:02:06.8]} 21. exd5 {[%clk 0:02:02.2]} 21... Bxd5 {[%clk
0:02:06.9]} 22. c4 {[%clk 0:01:51.8]} 22... Be6 {[%clk 0:02:05.7]} 23. Kb2
{[%clk 0:01:49.1]} 23... Rc5 {[%clk 0:01:59.8]} 24. Bd3 {[%clk 0:01:34]} 24...
a5 {[%clk 0:01:47.9]} 25. Be4 {[%clk 0:01:32.1]} 25... b5 {[%clk 0:01:44.4]} 26.
cxb5 {[%clk 0:01:28.3]} 26... Rxb5 {[%clk 0:01:41.9]} 27. Bd5 {[%clk 0:01:26.9]}
27... a4 {[%clk 0:01:30.7]} 28. Bxe6 {[%clk 0:01:23.3]} 28... fxe6 {[%clk
0:01:30.9]} 29. Re1 {[%clk 0:01:15.7]} 29... axb3 {[%clk 0:01:31]} 30. axb3
{[%clk 0:01:15.3]} 30... Rcb8 {[%clk 0:01:31.5]} 31. Re3 {[%clk 0:01:15.8]}
31... R8b6 {[%clk 0:01:31.6]} 32. Rd8 {[%clk 0:01:13.7]} 32... g5 {[%clk
0:01:26.7]} 33. Rh8 {[%clk 0:01:10.7]} 33... Kg7 {[%clk 0:01:26.3]} 34. Re8
{[%clk 0:01:09.2]} 34... Kf7 {[%clk 0:01:21.8]} 35. Rc8 {[%clk 0:01:09]} 35...
Kg6 {[%clk 0:01:21.4]} 36. Rec3 {[%clk 0:00:57.1]} 36... Rb4 {[%clk 0:01:17.3]}
37. R8c6 {[%clk 0:00:56.8]} 37... Rxb3+ {[%clk 0:01:13.4]} 38. Rxb3 {[%clk
0:00:39.6]} 38... Rxc6 {[%clk 0:01:13.5]} 39. Rb5 {[%clk 0:00:36.5]} 39... Kf6
{[%clk 0:01:09.8]} 40. Ra5 {[%clk 0:00:28.7]} 40... e5 {[%clk 0:01:09.8]} 41. g4
{[%clk 0:00:24.4]} 41... Ke6 {[%clk 0:01:04.5]} 42. Rb5 {[%clk 0:00:23.9]} 42...
Kd6 {[%clk 0:01:01.2]} 43. Ra5 {[%clk 0:00:22.9]} 43... Ke6 {[%clk 0:00:53.9]}
44. Rb5 {[%clk 0:00:22.8]} 1/2-1/2

[Event "*** Titled Tuesday Blitz"]
[Site "Chess.com"]
[Date "2020.05.26"]
[Round "9"]
[White "Gabix_94"]
[Black "FairChess_on_YouTube"]
[Result "1-0"]
[WhiteElo "2942"]
[BlackElo "3022"]
[TimeControl "180+1"]
[EndTime "11:51:27 PDT"]
[Termination "Gabix_94 won by resignation"]

1. Nf3 {[%clk 0:02:59.4]} 1... Nf6 {[%clk 0:02:59.4]} 2. d4 {[%clk 0:02:59]}
2... e6 {[%clk 0:02:58.5]} 3. e3 {[%clk 0:02:58.8]} 3... b6 {[%clk 0:02:57]} 4.
Bd3 {[%clk 0:02:58.8]} 4... Bb7 {[%clk 0:02:57.2]} 5. b3 {[%clk 0:02:58.2]} 5...
c5 {[%clk 0:02:54.4]} 6. Bb2 {[%clk 0:02:57.4]} 6... cxd4 {[%clk 0:02:54.5]} 7.
exd4 {[%clk 0:02:57.5]} 7... Bb4+ {[%clk 0:02:51]} 8. Nbd2 {[%clk 0:02:49.7]}
8... O-O {[%clk 0:02:47.4]} 9. O-O {[%clk 0:02:45.6]} 9... Nc6 {[%clk
0:02:42.9]} 10. a3 {[%clk 0:02:40.1]} 10... Be7 {[%clk 0:02:41.9]} 11. Re1
{[%clk 0:02:38.5]} 11... d5 {[%clk 0:02:40.8]} 12. Qe2 {[%clk 0:02:36.4]} 12...
a5 {[%clk 0:02:36.9]} 13. Rad1 {[%clk 0:02:33.6]} 13... Qc8 {[%clk 0:02:36.3]}
14. Ne5 {[%clk 0:02:27.5]} 14... Nxe5 {[%clk 0:02:31.3]} 15. dxe5 {[%clk
0:02:26.7]} 15... Nd7 {[%clk 0:02:31.4]} 16. Nf3 {[%clk 0:02:26]} 16... Ba6
{[%clk 0:02:27.2]} 17. Nd4 {[%clk 0:02:15.9]} 17... Nc5 {[%clk 0:02:08.2]} 18.
Bxa6 {[%clk 0:02:05.9]} 18... Qxa6 {[%clk 0:02:09.1]} 19. Qg4 {[%clk 0:01:51.5]}
19... Rac8 {[%clk 0:01:45.5]} 20. a4 {[%clk 0:01:41.4]} 20... Ne4 {[%clk
0:01:34]} 21. c4 {[%clk 0:01:29.8]} 21... Bb4 {[%clk 0:01:16.4]} 22. Re3 {[%clk
0:01:18.5]} 22... Rce8 {[%clk 0:00:51.9]} 23. cxd5 {[%clk 0:01:08.2]} 23... f5
{[%clk 0:00:51.9]} 24. exf6 {[%clk 0:01:01.4]} 24... Nxf6 {[%clk 0:00:51.4]} 25.
Qh3 {[%clk 0:00:49.4]} 25... Nxd5 {[%clk 0:00:39.4]} 26. Rg3 {[%clk 0:00:39.4]}
26... Nf4 {[%clk 0:00:28]} 27. Qg4 {[%clk 0:00:37.7]} 27... g6 {[%clk
0:00:21.1]} 28. h4 {[%clk 0:00:28.3]} 28... e5 {[%clk 0:00:21.3]} 29. Nb5 {[%clk
0:00:22.7]} 29... Ne2+ {[%clk 0:00:19.8]} 30. Qxe2 {[%clk 0:00:21.7]} 1-0

[Event "*** Titled Tuesday Blitz"]
[Site "Chess.com"]
[Date "2020.05.26"]
[Round "9"]
[White "Zarikovs1999"]
[Black "Kavyev_Ruslan"]
[Result "0-1"]
[WhiteElo "2349"]
[BlackElo "2494"]
[TimeControl "180+1"]
[EndTime "11:51:27 PDT"]
[Termination "Kavyev_Ruslan won on time"]

1. Nf3 {[%clk 0:03:00.9]} 1... Nf6 {[%clk 0:02:57.1]} 2. c4 {[%clk 0:02:59.2]}
2... g6 {[%clk 0:02:57.3]} 3. g3 {[%clk 0:02:43.9]} 3... c6 {[%clk 0:02:57.1]}
4. Bg2 {[%clk 0:02:44.8]} 4... d5 {[%clk 0:02:58]} 5. O-O {[%clk 0:02:44.7]}
5... Bg7 {[%clk 0:02:58]} 6. b3 {[%clk 0:02:43.4]} 6... O-O {[%clk 0:02:57.7]}
7. Bb2 {[%clk 0:02:43.5]} 7... Bg4 {[%clk 0:02:58.4]} 8. Ne5 {[%clk 0:02:43]}
8... Nfd7 {[%clk 0:02:48.1]} 9. f4 {[%clk 0:02:24.5]} 9... Nxe5 {[%clk
0:02:44.4]} 10. fxe5 {[%clk 0:02:23.2]} 10... dxc4 {[%clk 0:02:41.3]} 11. Rf4
{[%clk 0:02:11.4]} 11... Be6 {[%clk 0:02:40.7]} 12. bxc4 {[%clk 0:02:07.1]}
12... Nd7 {[%clk 0:02:31.7]} 13. d3 {[%clk 0:01:44]} 13... Nxe5 {[%clk
0:02:30.7]} 14. Nd2 {[%clk 0:01:39.8]} 14... Qb6+ {[%clk 0:02:25.3]} 15. Bd4
{[%clk 0:01:39.2]} 15... Nf3+ {[%clk 0:02:25.4]} 16. Nxf3 {[%clk 0:01:37.4]}
16... Bxd4+ {[%clk 0:02:21.1]} 17. Rxd4 {[%clk 0:01:26.9]} 17... Bg4 {[%clk
0:02:15]} 18. e3 {[%clk 0:01:10.1]} 18... h5 {[%clk 0:02:10.2]} 19. Qb3 {[%clk
0:01:02.8]} 19... Qc7 {[%clk 0:02:07.7]} 20. Rf1 {[%clk 0:01:01.7]} 20... e5
{[%clk 0:02:07.1]} 21. Rxg4 {[%clk 0:00:43.3]} 21... hxg4 {[%clk 0:02:08]} 22.
Ng5 {[%clk 0:00:39.8]} 22... Rad8 {[%clk 0:02:03.6]} 23. h4 {[%clk 0:00:35.6]}
23... gxh3 {[%clk 0:02:02.2]} 24. Bxh3 {[%clk 0:00:35.2]} 24... Qe7 {[%clk
0:01:59.2]} 25. Ne4 {[%clk 0:00:31.2]} 25... Kg7 {[%clk 0:01:54.1]} 26. Nf6
{[%clk 0:00:27.2]} 26... Qd6 {[%clk 0:01:45.9]} 27. Ng4 {[%clk 0:00:02.9]} 27...
f5 {[%clk 0:01:40.6]} 28. Nf2 {[%clk 0:00:01.4]} 28... e4 {[%clk 0:01:40.4]} 29.
Qc3+ {[%clk 0:00:01.7]} 29... Rf6 {[%clk 0:01:32.4]} 30. Kg2 {[%clk 0:00:02.1]}
30... exd3 {[%clk 0:01:30.1]} 31. Rd1 {[%clk 0:00:02.4]} 31... d2 {[%clk
0:01:18.5]} 32. e4 {[%clk 0:00:02.6]} 32... Qd4 {[%clk 0:01:14.9]} 33. Qxd4
{[%clk 0:00:02.3]} 33... Rxd4 {[%clk 0:01:15.8]} 34. exf5 {[%clk 0:00:01.9]}
34... gxf5 {[%clk 0:01:15.7]} 35. Kf3 {[%clk 0:00:01.8]} 35... Kg6 {[%clk
0:01:01.3]} 36. Ke3 {[%clk 0:00:02.3]} 36... Rfd6 {[%clk 0:01:01.6]} 37. Bg2
{[%clk 0:00:01.6]} 37... Rxc4 {[%clk 0:00:58.4]} 38. Rxd2 {[%clk 0:00:01.5]}
38... Rc3+ {[%clk 0:00:58.4]} 0-1

[Event "*** Titled Tuesday Blitz"]
[Site "Chess.com"]
[Date "2020.05.26"]
[Round "9"]
[White "Parkas"]
[Black "blitzking1729"]
[Result "0-1"]
[WhiteElo "2283"]
[BlackElo "2488"]
[TimeControl "180+1"]
[EndTime "11:51:27 PDT"]
[Termination "blitzking1729 won by resignation"]

1. e4 {[%clk 0:01:35.5]} 1... g6 {[%clk 0:02:56.5]} 2. d4 {[%clk 0:01:33.9]}
2... Bg7 {[%clk 0:02:56.2]} 3. Nc3 {[%clk 0:01:34.5]} 3... d6 {[%clk 0:02:56.1]}
4. Bc4 {[%clk 0:01:32.9]} 4... e6 {[%clk 0:02:54.4]} 5. Bb3 {[%clk 0:01:32.8]}
5... a6 {[%clk 0:02:53.1]} 6. h4 {[%clk 0:01:31.4]} 6... h6 {[%clk 0:02:52.2]}
7. h5 {[%clk 0:01:29.7]} 7... g5 {[%clk 0:02:51.5]} 8. Nge2 {[%clk 0:01:28.7]}
8... b5 {[%clk 0:02:50.1]} 9. a3 {[%clk 0:01:26.5]} 9... Bb7 {[%clk 0:02:48.2]}
10. f4 {[%clk 0:01:25.2]} 10... gxf4 {[%clk 0:02:47.8]} 11. Bxf4 {[%clk
0:01:24.5]} 11... Nf6 {[%clk 0:02:44.9]} 12. Qd3 {[%clk 0:01:23.6]} 12... Nbd7
{[%clk 0:02:32.9]} 13. d5 {[%clk 0:01:14.6]} 13... Nc5 {[%clk 0:02:26.5]} 14.
Qg3 {[%clk 0:01:11.2]} 14... Rg8 {[%clk 0:02:26.1]} 15. O-O-O {[%clk 0:01:04.1]}
15... e5 {[%clk 0:02:22.1]} 16. Be3 {[%clk 0:00:57.6]} 16... Ncxe4 {[%clk
0:02:16.8]} 17. Nxe4 {[%clk 0:00:57.4]} 17... Nxe4 {[%clk 0:02:16.9]} 18. Qg4
{[%clk 0:00:36.7]} 18... Nf6 {[%clk 0:02:16.4]} 19. Qf3 {[%clk 0:00:30.8]} 19...
Qe7 {[%clk 0:02:11.6]} 20. Ng3 {[%clk 0:00:31]} 20... Bc8 {[%clk 0:02:09.7]} 21.
Nf5 {[%clk 0:00:23.2]} 21... Bxf5 {[%clk 0:02:09]} 22. Qxf5 {[%clk 0:00:24.1]}
22... Qd7 {[%clk 0:02:07.3]} 23. Qd3 {[%clk 0:00:23.7]} 23... Ng4 {[%clk
0:01:58.4]} 24. Kb1 {[%clk 0:00:21]} 24... Bf6 {[%clk 0:01:55.1]} 25. c4 {[%clk
0:00:20.9]} 25... Bg5 {[%clk 0:01:52]} 26. Bxg5 {[%clk 0:00:21.2]} 26... Rxg5
{[%clk 0:01:51.3]} 27. Ka2 {[%clk 0:00:21.9]} 27... Nf2 {[%clk 0:01:47.7]} 28.
Qh7 {[%clk 0:00:20.6]} 28... Qe7 {[%clk 0:01:34.9]} 29. Qh8+ {[%clk 0:00:16.6]}
29... Qf8 {[%clk 0:01:34.4]} 30. Qf6 {[%clk 0:00:16.2]} 30... Nxh1 {[%clk
0:01:29.7]} 31. Rxh1 {[%clk 0:00:15.6]} 31... Qg7 {[%clk 0:01:28.6]} 32. Qf2
{[%clk 0:00:13.9]} 32... Rxg2 {[%clk 0:01:28.2]} 33. Qf5 {[%clk 0:00:13.9]}
33... Qg5 {[%clk 0:01:25.6]} 34. Qh7 {[%clk 0:00:13.5]} 34... bxc4 {[%clk
0:01:19.9]} 35. Ba4+ {[%clk 0:00:13.2]} 35... Ke7 {[%clk 0:01:17.6]} 36. Rf1
{[%clk 0:00:13.5]} 36... Rf8 {[%clk 0:01:16.5]} 37. Qe4 {[%clk 0:00:10.4]} 37...
Qd2 {[%clk 0:01:12.8]} 38. Rb1 {[%clk 0:00:10.4]} 38... Rb8 {[%clk 0:01:11.8]}
39. Qh4+ {[%clk 0:00:09.1]} 39... Kf8 {[%clk 0:01:08.1]} 40. Ka1 {[%clk
0:00:04.9]} 40... Rxb2 {[%clk 0:01:05]} 41. Qd8+ {[%clk 0:00:04.7]} 41... Kg7
{[%clk 0:01:05]} 0-1

[Event "*** Titled Tuesday Blitz"]
[Site "Chess.com"]
[Date "2020.05.26"]
[Round "9"]
[White "Infernal_XaM"]
[Black "Indianlad"]
[Result "0-1"]
[WhiteElo "2834"]
[BlackElo "2985"]
[TimeControl "180+1"]
[EndTime "11:51:31 PDT"]
[Termination "Indianlad won by checkmate"]

1. c4 {[%clk 0:03:00.9]} 1... e5 {[%clk 0:02:59.7]} 2. Nc3 {[%clk 0:03:01.1]}
2... Nf6 {[%clk 0:03:00.1]} 3. e3 {[%clk 0:03:01.7]} 3... Nc6 {[%clk 0:03:00.4]}
4. g4 {[%clk 0:03:02]} 4... h6 {[%clk 0:02:59.6]} 5. Bg2 {[%clk 0:03:00.4]} 5...
d6 {[%clk 0:02:56.1]} 6. h3 {[%clk 0:02:59.9]} 6... g6 {[%clk 0:02:56.7]} 7.
Nge2 {[%clk 0:02:59.5]} 7... Bg7 {[%clk 0:02:57.3]} 8. d4 {[%clk 0:03:00]} 8...
O-O {[%clk 0:02:56.8]} 9. d5 {[%clk 0:02:58.8]} 9... Ne7 {[%clk 0:02:56.2]} 10.
e4 {[%clk 0:02:59.3]} 10... c6 {[%clk 0:02:52.6]} 11. Be3 {[%clk 0:02:59]} 11...
h5 {[%clk 0:02:34.1]} 12. f3 {[%clk 0:02:54]} 12... b5 {[%clk 0:02:30.9]} 13. g5
{[%clk 0:02:04]} 13... Nh7 {[%clk 0:02:28.5]} 14. dxc6 {[%clk 0:01:57.2]} 14...
bxc4 {[%clk 0:02:28.3]} 15. Qa4 {[%clk 0:01:57.3]} 15... Be6 {[%clk 0:02:18.7]}
16. O-O-O {[%clk 0:01:53.7]} 16... Rc8 {[%clk 0:02:18.9]} 17. f4 {[%clk
0:01:50.6]} 17... exf4 {[%clk 0:02:05.9]} 18. Bxf4 {[%clk 0:01:49]} 18... Nxc6
{[%clk 0:01:59.5]} 19. Rxd6 {[%clk 0:01:44.8]} 19... Qb6 {[%clk 0:02:00.1]} 20.
e5 {[%clk 0:01:33.2]} 20... Rb8 {[%clk 0:01:43.6]} 21. Qxc6 {[%clk 0:01:11]}
21... Qxb2+ {[%clk 0:01:42.7]} 22. Kd1 {[%clk 0:01:11.7]} 22... Bf5 {[%clk
0:01:31.4]} 23. Ke1 {[%clk 0:01:08.5]} 23... Bd3 {[%clk 0:01:24.8]} 24. Kf2
{[%clk 0:01:04.6]} 24... Rfe8 {[%clk 0:01:10.7]} 25. Bc1 {[%clk 0:00:55.8]}
25... Qc2 {[%clk 0:01:09]} 26. Bf4 {[%clk 0:00:19.3]} 26... Bxe5 {[%clk
0:01:05.7]} 27. Rc1 {[%clk 0:00:19]} 27... Qb2 {[%clk 0:00:57.7]} 28. Bxe5
{[%clk 0:00:16.6]} 28... Rxe5 {[%clk 0:00:58.6]} 29. Qc7 {[%clk 0:00:05.9]}
29... Rbe8 {[%clk 0:00:57.5]} 30. Kg1 {[%clk 0:00:05.5]} 30... Rxe2 {[%clk
0:00:55.1]} 31. Nxe2 {[%clk 0:00:05.1]} 31... Rxe2 {[%clk 0:00:55.6]} 32. Rd8+
{[%clk 0:00:05.1]} 32... Kg7 {[%clk 0:00:55.6]} 33. Rf1 {[%clk 0:00:03.3]} 33...
Rxg2+ {[%clk 0:00:55.6]} 34. Kh1 {[%clk 0:00:03.2]} 34... Bxf1 {[%clk
0:00:55.1]} 35. Rb8 {[%clk 0:00:02.4]} 35... Rg1+ {[%clk 0:00:55.2]} 36. Kxg1
{[%clk 0:00:01.3]} 36... Qg2# {[%clk 0:00:56.1]} 0-1